bitfinex-derivatives/quotes_ETHF0:USTF0_20241228
["timestamp","ask_amount","ask_price","bid_price","bid_amount"]
[1735421458672,1.59834481,3394.8,3394.7,0.29512]
[1735421462575,0.72964481,3394.8,3394.7,0.29512]
[1735421463673,0.8906,3395.1,3395.0,0.29509]
[1735421463875,0.8906,3395.1,3394.8,0.73778]
[1735421463876,0.72964481,3395.1,3394.8,1.61598]
[1735421464076,0.72964481,3395.1,3395.0,0.29509]
[1735421465884,3.2078,3395.2,3395.1,0.29508]
[1735421466681,0.72964481,3395.5,3395.4,0.29506]
[1735421467389,0.72964481,3395.5,3395.2,0.4273]
[1735421467390,5.76366745,3395.6,3395.3,0.4568]
[1735421467592,5.76366745,3395.6,3395.5,0.29505]
[1735421467785,0.4659,3395.7,3395.6,0.29504]
[1735421468792,5.96368085,3395.8,3395.4,5.07154493]
[1735421468985,3.2078,3395.8,3395.4,5.80917493]
[1735421469190,3.2078,3395.8,3395.7,0.29503]
[1735421470088,3.93744481,3395.8,3395.7,0.29503]
[1735421470394,3.2078,3395.8,3395.7,0.29503]
[1735421470692,1.3288,3396.1,3395.5,8.57688974]
[1735421470987,0.72964481,3396.0,3395.6,0.4315]
[1735421471196,0.72964481,3396.0,3395.9,0.29502]
[1735421475395,0.72964481,3396.0,3395.9,0.73812]
[1735421478397,1.63024481,3396.2,3395.9,0.4431]
[1735421478597,1.63024481,3396.2,3396.1,0.295]
[1735421478898,0.72964481,3396.2,3396.1,0.295]
[1735421482396,3.2078,3396.3,3396.2,0.29499]
[1735421485997,0.72964481,3396.4,3396.3,0.29498]
[1735421486300,3.93744481,3396.4,3396.3,0.29498]
[1735421486795,3.2078,3396.4,3396.3,0.29498]
[1735421487693,0.72964481,3396.5,3396.4,0.29497]
[1735421494999,3.93744481,3396.5,3396.4,0.29497]
[1735421495304,0.29498,3396.4,3396.3,0.29497]
[1735421495602,1.02462481,3396.4,3396.3,0.29497]
[1735421497400,1.02462481,3396.4,3396.0,0.73751]
[1735421497401,0.72964481,3396.4,3395.9,0.73753]
[1735421497607,0.295,3396.2,3396.1,0.29499]
[1735421499509,0.295,3396.2,3395.7,3.94539]
[1735421499510,0.29502,3396.0,3395.9,0.295]
[1735421499701,1.02466481,3396.0,3395.9,0.295]
[1735421500198,1.47566481,3396.0,3395.9,0.295]
[1735421500400,0.29504,3395.8,3395.7,0.29502]
[1735421500602,1.02468481,3395.8,3395.7,0.29502]
[1735421500796,0.72964481,3395.8,3395.3,3.2078]
[1735421501003,1.02470481,3395.4,3395.3,0.29506]
[1735421501211,0.29508,3395.3,3395.2,0.29507]
[1735421501506,0.29508,3395.3,3394.9,4.93454493]
[1735421501507,0.29509,3395.0,3394.9,4.93454493]
[1735421501708,1.02473481,3395.0,3394.9,4.93454493]
[1735421501908,1.02473481,3395.0,3394.9,0.2951]
[1735421502709,0.29511,3394.9,3394.8,0.2951]
[1735421502910,1.02475481,3394.9,3394.8,0.2951]
[1735421503503,0.72964481,3394.9,3394.4,3.2078]
[1735421503804,0.72964481,3394.9,3394.7,0.29511]
[1735421503805,0.29512,3394.8,3394.7,0.29511]
[1735421508414,3.50292,3394.8,3394.7,0.29511]
[1735421509309,0.29514,3394.5,3394.4,0.29513]
[1735421509509,0.29514,3394.5,3394.3,0.4384]
[1735421509510,0.72843,3394.7,3394.6,0.29513]
[1735421509709,1.15683,3394.7,3394.6,0.29513]
[1735421511210,0.29514,3394.6,3394.5,0.29513]
[1735421518512,0.74304,3394.6,3394.5,0.29513]
[1735421524417,1.47380853,3394.6,3394.5,0.29513]
[1735421526220,1.17866853,3394.6,3394.3,0.4384]
[1735421526424,1.17866853,3394.6,3394.4,0.29514]
[1735421526425,0.29515,3394.5,3394.4,0.29514]
[1735421526921,0.29517,3394.2,3394.1,0.29516]
[1735421527123,0.29517,3394.2,3394.1,0.74486]
[1735421527512,1.02593853,3394.2,3394.1,0.74486]
[1735421528523,0.29517,3394.2,3394.1,0.74486]
[1735421528922,0.29517,3394.2,3394.1,0.4497]
[1735421530627,0.29517,3394.2,3394.1,0.74487]
[1735421533219,0.29522,3393.6,3393.5,3.50301]
[1735421536828,0.2952,3393.9,3393.8,0.29518]
[1735421539430,3.2078,3394.3,3393.8,0.73799]
[1735421539630,3.50296,3394.3,3394.2,0.29516]
[1735421542635,0.29519,3394.0,3393.9,0.29518]
[1735421543731,0.74439,3394.0,3393.9,0.29518]
[1735421552542,0.29522,3393.7,3393.6,0.2952]
[1735421553643,0.29522,3393.7,3393.3,0.74394]
[1735421553644,0.29523,3393.4,3393.3,0.74394]
[1735421553840,0.29523,3393.4,3393.3,0.29524]
[1735421561059,0.74263,3393.5,3393.4,0.29523]
[1735421566257,1.47387041,3393.5,3393.4,0.29523]
[1735421566861,1.47386041,3393.5,3393.4,0.29523]
[1735421567159,1.17864041,3393.5,3393.4,0.29523]
[1735421573471,1.47386041,3393.5,3393.4,0.29523]
[1735421583670,0.73811,3393.3,3392.8,4.30825416]
[1735421583874,1.02652041,3392.9,3392.8,3.14701416]
[1735421584281,0.2953,3392.6,3392.5,6.94768671]
[1735421584483,6.11158082,3392.6,3392.5,5.70688671]
[1735421584679,10.38034041,3392.6,3392.5,5.70688671]
[1735421584883,10.38034041,3392.6,3392.5,3.59668671]
[1735421585084,10.38034041,3392.6,3392.5,1.54898672]
[1735421585379,5.08504041,3392.6,3392.3,11.59619742]
[1735421585580,5.08504041,3392.6,3391.6,0.459]
[1735421585581,0.29538,3391.8,3391.7,0.29538]
[1735421585884,1.02662041,3391.8,3391.7,0.29538]
[1735421586276,0.29538,3391.8,3391.7,0.29538]
[1735421586586,0.29538,3391.8,3391.6,0.459]
[1735421586587,3.2078,3391.9,3391.6,0.459]
[1735421586781,3.2078,3391.9,3391.8,0.29537]
[1735421586977,3.45459666,3391.9,3391.8,0.29537]
[1735421587181,2.75489666,3391.9,3391.8,0.29537]
[1735421588284,2.30269435,3392.1,3392.0,0.29535]
[1735421590287,2.30269435,3392.1,3391.6,3.6668]
[1735421590485,0.29536,3392.0,3391.9,0.29535]
[1735421590680,2.30269435,3392.1,3391.6,3.6668]
[1735421590877,2.30269435,3392.1,3392.0,0.29535]
[1735421591083,2.30269435,3392.2,3392.1,0.29535]
[1735421592186,0.90329435,3392.2,3392.1,0.29535]
[1735421592482,0.90329435,3392.2,3391.8,0.73843]
[1735421592483,3.2078,3392.3,3391.8,0.73843]
[1735421592787,3.2078,3392.3,3392.2,0.29534]
[1735421593089,3.2078,3392.3,3391.9,0.7384]
[1735421593090,0.29532,3392.4,3391.8,0.73843]
[1735421593291,0.29532,3392.4,3392.3,0.29533]
[1735421593791,0.29532,3392.4,3392.0,0.73839]
[1735421593792,0.29535,3392.2,3391.9,0.29536]
[1735421594087,0.29535,3392.2,3392.1,0.29535]
[1735421595188,0.90329435,3392.5,3391.6,3.6668]
[1735421595393,0.29536,3392.0,3391.9,0.29535]
[1735421596688,0.29535,3392.1,3392.0,0.29535]
[1735421600092,3.2078,3392.3,3391.7,1.16565]
[1735421600093,0.29534,3392.2,3392.1,0.29534]
[1735421600888,3.50313,3392.3,3392.2,0.29534]
[1735421601283,3.2078,3392.3,3392.2,0.29534]
[1735421601489,3.2078,3392.3,3391.7,0.4272]
[1735421601490,0.90329435,3392.5,3392.4,0.29532]
[1735421602595,0.7605,3392.6,3392.5,0.29531]
[1735421603692,0.4652,3392.6,3392.5,0.29531]
[1735421603899,3.2078,3392.7,3392.6,0.2953]
[1735421608598,0.29527,3393.0,3392.6,0.2953]
[1735421608797,4.87301589,3393.1,3392.5,0.73828]
[1735421609003,5.16827589,3393.1,3393.0,0.29527]
[1735421612702,4.87301589,3393.1,3393.0,0.29527]
[1735421615204,5.16827589,3393.1,3393.0,0.29527]
[1735421619208,4.87301589,3393.1,3392.5,0.73828]
[1735421619503,0.29529,3392.9,3392.8,0.29527]
[1735421625412,3.50307,3393.1,3393.0,0.29527]
[1735421626608,3.2078,3393.1,3393.0,0.29527]
[1735421626914,4.60612889,3393.3,3393.2,0.29525]
[1735421627301,3.90622889,3393.3,3393.2,0.29525]
[1735421628008,3.2078,3393.5,3393.4,0.29523]
[1735421636021,0.29521,3393.7,3393.2,0.4243]
[1735421636211,3.2078,3393.6,3393.3,0.73809]
[1735421636614,3.2078,3393.6,3393.5,0.29522]
[1735421636916,0.29527,3393.0,3392.9,0.74867]
[1735421637113,0.29526,3393.1,3393.0,0.29525]
[1735421639212,0.29528,3392.9,3392.8,3.50307]
[1735421639523,0.29528,3392.9,3392.8,0.29527]
[1735421640733,0.76158,3392.9,3392.8,0.29527]
[1735421641629,0.4663,3392.9,3392.8,0.29527]
[1735421642531,0.4663,3392.9,3392.8,0.72227]
[1735421643823,3.2078,3393.1,3393.0,0.29527]
[1735421645727,3.2078,3393.5,3393.0,0.29527]
[1735421646033,0.29524,3393.4,3393.3,0.29523]
[1735421646222,3.2078,3393.5,3393.1,0.73814]
[1735421646223,3.2078,3393.5,3393.4,0.29523]
[1735421647434,6.66825677,3393.5,3393.4,0.29523]
[1735421648135,3.46045677,3393.5,3393.4,0.29523]
[1735421648536,8.97914784,3393.9,3393.2,2.85764589]
[1735421648537,3.46045677,3393.7,3393.6,0.29521]
[1735421649038,5.77134784,3394.1,3393.6,8.2078]
[1735421649238,5.77134784,3394.1,3394.0,0.29518]
[1735421650235,3.2078,3394.3,3393.6,3.2078]
[1735421650435,3.2078,3394.3,3394.2,0.29516]
[1735421653135,3.6681,3394.7,3394.6,0.29513]
[1735421653335,0.4603,3394.7,3394.6,0.29513]
[1735421662844,3.6681,3394.7,3394.6,0.29513]
[1735421666255,0.4603,3394.7,3394.6,0.29513]
[1735421673159,3.35432714,3394.9,3394.8,0.29511]
[1735421673758,3.2078,3394.9,3394.8,0.29511]
[1735421677561,3.2078,3394.9,3394.8,1.18161]
[1735421686272,3.2078,3394.9,3394.8,1.91197377]
[1735421691572,0.4652,3395.4,3394.8,1.61686377]
[1735421691879,3.2078,3395.2,3395.1,0.29508]
[1735421695184,0.4652,3395.4,3395.3,0.29507]
[1735421702481,0.4652,3395.4,3395.3,0.75187]
[1735421707084,0.4652,3395.4,3395.3,0.29507]
[1735421709789,3.92873604,3395.4,3395.3,0.29507]
[1735421710893,3.92873604,3395.4,3394.9,0.4454]
[1735421711093,3.92873604,3395.4,3394.8,4.63509193]
[1735421711094,0.2951,3394.9,3394.8,4.63509193]
[1735421711288,4.23326377,3394.9,3394.8,4.93020193]
[1735421711592,3.93816377,3394.9,3394.8,4.93020193]
[1735421712591,4.23326377,3394.9,3394.8,0.29511]
[1735421715097,4.67156377,3394.9,3394.8,0.29511]
[1735421715701,0.29512,3394.8,3394.7,0.29512]
[1735421715899,0.29515,3394.5,3394.4,0.29514]
[1735421716094,4.23331377,3394.5,3394.4,0.29514]
[1735421717798,8.85211939,3394.5,3394.4,0.29514]
[1735421718003,7.82660562,3394.5,3394.4,0.29514]
[1735421718395,8.25950562,3394.5,3394.4,0.29514]
[1735421719401,8.98986939,3394.5,3394.4,0.29514]
[1735421720301,9.28500939,3394.5,3394.4,0.29514]
[1735421720601,8.98986939,3394.5,3394.4,0.29514]
[1735421722103,4.37106377,3394.5,3394.4,0.29514]
[1735421723002,3.6407,3394.5,3394.4,0.29514]
[1735421724397,7.09711241,3394.5,3394.4,0.29514]
[1735421725012,6.66421241,3394.5,3394.4,0.29514]
[1735421725610,6.66421241,3394.5,3394.4,1.20434]
[1735421725912,3.2078,3394.5,3394.4,1.20434]
[1735421729910,3.45641241,3394.7,3394.4,0.9092]
[1735421730215,3.45641241,3394.7,3394.6,1.02549377]
[1735421730818,7.82660562,3394.9,3394.6,0.73036377]
[1735421730819,3.2078,3394.9,3394.6,0.73036377]
[1735421731117,3.2078,3394.9,3394.8,0.29511]
[1735421734123,3.2078,3394.9,3394.8,1.02547377]
[1735421734622,3.91991241,3395.2,3395.1,0.29509]
[1735421737221,0.4635,3395.2,3395.1,0.29509]
[1735421742026,3.45641241,3395.5,3395.4,0.29506]
[1735421743021,3.45641241,3395.5,3395.4,0.75986]
[1735421743830,8.29987618,3395.7,3395.4,0.4648]
[1735421744128,8.29987618,3395.7,3395.6,0.29504]
[1735421752337,8.59490618,3395.7,3395.6,0.29504]
[1735421752839,8.29987618,3395.7,3395.6,0.29504]
[1735421753730,8.59490618,3395.7,3395.6,0.29504]
[1735421754440,8.29987618,3395.7,3395.6,0.29504]
[1735421754831,9.46226939,3395.7,3395.6,0.29504]
[1735421755034,9.75729939,3395.7,3395.6,0.29504]
[1735421757040,9.46226939,3395.7,3395.6,0.29504]
[1735421757638,9.75729939,3395.7,3395.6,0.29504]
[1735421759036,5.13849377,3395.7,3395.6,0.29504]
[1735421766150,9.74752782,3395.7,3395.6,0.29504]
[1735421770049,5.13849377,3395.7,3395.6,0.29504]
[1735421774744,1.93069377,3395.7,3395.6,0.29504]
[1735421774955,5.13849377,3395.7,3395.6,0.29504]
[1735421782562,1.93069377,3395.7,3395.6,0.29504]
[1735421783061,5.13849377,3395.7,3395.6,0.29504]
[1735421786660,1.93069377,3395.7,3395.6,0.29504]
[1735421786861,5.13849377,3395.7,3395.6,0.29504]
[1735421788860,5.13849377,3395.7,3394.8,4.63509193]
[1735421788861,4.84346377,3395.7,3394.8,4.63509193]
[1735421789061,4.84346377,3395.7,3395.1,0.29507]
[1735421789062,0.29509,3395.2,3395.1,0.29507]
[1735421789363,4.23325377,3395.2,3395.1,0.29507]
[1735421790064,4.67405377,3395.2,3395.1,0.29507]
[1735421791068,3.2078,3395.2,3395.1,0.29507]
[1735421792564,8.98523175,3395.2,3395.1,0.29507]
[1735421795266,9.28031175,3395.2,3395.1,0.29507]
[1735421795464,9.74161175,3395.2,3395.1,0.29507]
[1735421795772,10.19141175,3395.2,3395.1,0.29507]
[1735421797271,4.41398,3395.2,3395.1,0.29507]
[1735421799469,3.96418,3395.2,3395.1,0.29507]
[1735421800269,3.6691,3395.2,3395.1,0.29507]
[1735421800575,3.2078,3395.2,3395.1,0.29507]
[1735421804764,8.98253794,3395.2,3395.1,0.29507]
[1735421806486,6.67286303,3395.2,3395.1,0.29507]
[1735421807487,3.2078,3395.2,3395.1,0.29507]
[1735421808585,3.2078,3395.2,3395.1,4.93016193]
[1735421811187,3.2078,3395.2,3395.1,0.29507]
[1735421812792,3.46506303,3395.3,3395.2,0.29508]
[1735421812991,3.46506303,3395.3,3395.2,1.02544377]
[1735421816792,3.46506303,3395.4,3395.2,0.73036377]
[1735421816992,2.76546303,3395.4,3395.3,3.95277]
[1735421817197,0.66796303,3395.4,3395.3,3.95277]
[1735421817498,4.62008404,3395.6,3395.5,0.29505]
[1735421817699,4.62008404,3395.6,3395.5,1.02541377]
[1735421817900,5.06858404,3396.0,3395.9,0.29502]
[1735421819198,0.4485,3396.0,3395.9,1.02538377]
[1735421820598,0.4485,3396.0,3395.9,0.29502]
[1735421821605,5.06858404,3396.0,3395.9,0.29502]
[1735421822700,5.06858404,3396.0,3395.9,1.02538377]
[1735421823200,0.4485,3396.0,3395.9,1.02538377]
[1735421841815,0.4576,3396.2,3396.1,0.295]
[1735421842019,0.4576,3396.2,3396.1,1.02536377]
[1735421843914,0.4576,3396.2,3396.1,4.23316377]
[1735421846920,0.4576,3396.2,3396.1,1.02536377]
[1735421849120,0.4554,3396.4,3396.3,0.29498]
[1735421849325,0.4554,3396.4,3396.3,1.02534377]
[1735421849520,0.4258,3396.6,3396.3,0.73036377]
[1735421849722,0.8588,3396.9,3396.8,0.29494]
[1735421849920,0.8588,3396.9,3396.8,1.75566754]
[1735421850122,0.4571,3397.1,3396.9,0.29493]
[1735421850726,0.4571,3397.1,3396.9,1.02529377]
[1735421851025,8.98253794,3397.2,3396.9,1.02529377]
[1735421851417,5.77473794,3397.2,3396.9,4.23309377]
[1735421852321,0.4571,3397.4,3397.3,0.2949]
[1735421857431,0.4571,3397.4,3397.3,3.5027]
[1735421858734,0.4571,3397.4,3397.3,4.23306377]
[1735421879741,0.8989,3397.5,3397.4,0.29489]
[1735421880242,0.8989,3397.5,3397.4,1.02525377]
[1735421880635,0.8989,3397.5,3397.4,0.29489]
[1735421881041,0.455,3398.0,3397.9,0.29484]
[1735421881249,0.455,3398.0,3397.9,4.96336754]
[1735421882137,3.45061092,3398.3,3398.2,0.29482]
[1735421882333,3.45061092,3398.3,3398.2,1.02518377]
[1735421882534,0.455,3398.4,3398.2,0.73036377]
[1735421882745,0.455,3398.4,3398.3,0.29481]
[1735421889044,0.455,3398.4,3398.3,3.50261]
[1735421891348,0.9165,3398.7,3398.6,0.29478]
[1735421891550,0.9165,3398.7,3398.6,1.02514377]
[1735421892656,0.9165,3398.7,3398.6,1.75550754]
[1735421896249,0.9165,3398.7,3398.6,2.89850754]
[1735421896449,6.65841092,3399.5,3398.6,2.60372754]
[1735421896748,6.65841092,3399.5,3399.3,0.29472]
[1735421896749,1.3115,3399.4,3399.3,0.29472]
[1735421897151,1.3115,3399.4,3399.3,1.02508377]
[1735421897350,3.45061092,3399.6,3399.3,0.73036377]
[1735421897550,3.45061092,3399.6,3399.5,0.29471]
[1735421897750,3.45061092,3399.6,3399.5,1.02507377]
[1735421898956,0.8781,3399.9,3399.5,1.02507377]
[1735421898957,0.8781,3399.9,3399.5,0.73036377]
[1735421899157,0.8781,3399.9,3399.8,1.02504377]
[1735421901562,3.2078,3400.8,3400.6,0.29461]
[1735421901857,3.2078,3400.8,3400.5,0.29461]
[1735421902159,3.2078,3400.8,3400.7,0.73036377]
[1735421902362,3.2078,3400.8,3400.7,0.03156377]
[1735421902859,3.6712,3400.8,3400.7,0.03156377]
[1735421903559,3.96579,3400.8,3400.7,0.03156377]
[1735421903957,3.6712,3400.8,3400.2,3.2078]
[1735421904157,3.93816377,3400.4,3399.7,3.2078]
[1735421904460,0.29467,3400.0,3399.8,0.32614377]
[1735421904756,8.2078,3400.4,3399.8,0.03146377]
[1735421905062,8.2078,3400.4,3400.0,0.73036377]
[1735421905359,8.2078,3400.4,3400.1,0.29465]
[1735421905560,0.29465,3400.2,3400.1,0.29465]
[1735421905960,0.4236,3400.3,3400.0,0.73036377]
[1735421906255,0.4236,3400.3,3400.2,1.02501377]
[1735421908358,0.4236,3400.3,3400.2,1.95084357]
[1735421916366,0.4236,3400.3,3400.2,0.29465]
[1735421917559,0.4236,3400.3,3399.7,3.2078]
[1735421917560,0.29465,3400.2,3399.7,3.2078]
[1735421917766,0.4429,3400.1,3399.9,0.29467]
[1735421918066,0.29466,3400.0,3399.9,0.29467]
[1735421919469,0.29468,3399.9,3399.8,0.29468]
[1735421919764,0.29468,3399.8,3399.7,3.50248]
[1735421919961,0.29468,3399.8,3399.7,0.29468]
[1735421919962,3.50248,3399.8,3399.7,0.29468]
[1735421920770,3.2078,3399.8,3399.7,0.29468]
[1735421921663,3.2078,3399.8,3399.7,1.21528]
[1735421922364,0.4272,3400.0,3399.9,0.29467]
[1735421924369,3.2078,3400.3,3400.2,0.29465]
[1735421924566,3.2078,3400.3,3400.2,1.95084357]
[1735421927670,0.4339,3400.6,3400.5,0.29462]
[1735421928076,3.6417,3400.6,3400.5,0.29462]
[1735421928576,3.2078,3400.6,3400.5,1.95081357]
[1735421930676,3.2078,3400.6,3400.5,0.29462]
[1735421930979,3.50241,3400.6,3400.4,0.29462]
[1735421931780,3.50241,3400.6,3400.5,0.29462]
[1735421932673,3.2078,3400.6,3400.5,0.29462]
[1735421933074,7.82788404,3400.6,3400.5,0.29462]
[1735421935482,3.2078,3400.6,3400.5,0.29462]
[1735421937884,3.2078,3400.6,3400.5,1.95081357]
[1735421939877,7.83016451,3400.6,3400.5,1.95081357]
[1735421940783,7.83016451,3400.6,3400.5,0.29462]
[1735421941080,3.2078,3400.6,3400.5,0.29462]
[1735421941276,3.2078,3400.6,3399.9,7.48827139]
[1735421941483,3.2078,3400.6,3400.4,0.29463]
[1735421941484,0.72542,3400.5,3400.4,0.29463]
[1735421941884,5.34778451,3400.5,3400.4,0.29463]
[1735421942887,0.72542,3400.5,3400.4,0.29463]
[1735421947390,0.4308,3400.5,3400.4,0.29463]
[1735421950385,0.00252591,3400.6,3400.2,1.65619357]
[1735421950682,0.00252591,3400.6,3400.5,1.95081357]
[1735421952392,5.79128101,3400.6,3400.5,1.95081357]
[1735421954996,0.00252591,3400.6,3400.5,1.95081357]
[1735421956100,4.63238784,3400.6,3400.5,1.95081357]
[1735421957402,3.47484031,3400.6,3400.5,1.95081357]
[1735421958906,0.00252591,3400.6,3400.5,1.95081357]
[1735421959913,3.47484031,3400.6,3400.5,1.95081357]
[1735421961412,0.00252591,3400.6,3400.5,1.95081357]
[1735421968113,2.81955009,3401.1,3401.0,0.29458]
[1735421968412,2.81955009,3401.1,3401.0,6.30257357]
[1735421969812,0.4603,3401.2,3401.1,0.29457]
[1735421970215,0.4197,3401.5,3401.1,0.29457]
[1735421970418,0.4197,3401.5,3401.4,1.95073357]
[1735421972727,0.9112,3401.6,3401.5,0.29453]
[1735421972728,0.4603,3401.6,3401.5,0.29453]
[1735421973920,0.4603,3401.6,3401.0,3.2078]
[1735421974224,0.4316,3401.5,3401.4,0.29454]
[1735421980426,0.4316,3401.5,3401.4,1.95073357]
[1735421985828,0.4316,3401.5,3401.4,1.65619357]
[1735421986023,0.29455,3401.4,3401.3,0.29455]
[1735421986330,0.4316,3401.5,3401.4,0.29454]
[1735421988029,5.05306339,3401.5,3401.4,0.29454]
[1735421991233,0.4316,3401.5,3401.4,0.29454]
[1735421992438,0.72613,3401.5,3401.4,0.29454]
[1735421993437,0.4316,3401.5,3401.4,0.29454]
[1735421993638,6.2203551,3401.5,3401.4,0.29454]
[1735421994733,6.5148851,3401.5,3401.4,0.29454]
[1735421997139,0.72613,3401.5,3401.4,0.29454]
[1735421997738,3.93393,3401.5,3401.4,0.29454]
[1735421997942,3.6394,3401.5,3401.4,0.29454]
[1735421998738,3.93393,3401.5,3401.4,0.29454]
[1735422002438,3.6394,3401.5,3401.4,0.29454]
[1735422002843,2.6394,3401.5,3401.4,0.29454]
[1735422004340,0.29459,3401.0,3400.9,0.29457]
[1735422004540,0.29459,3401.0,3400.2,7.84489782]
[1735422004541,3.2078,3401.0,3400.7,0.4341]
[1735422004746,0.29459,3400.8,3400.7,0.7287]
[1735422006338,0.71409,3400.8,3400.7,0.7287]
[1735422006741,0.29464,3400.4,3400.3,0.29462]
[1735422008851,6.08304172,3400.4,3400.3,0.29462]
[1735422009354,5.78840172,3400.4,3400.0,0.8803]
[1735422009548,0.73914,3400.3,3400.2,0.29464]
[1735422010246,0.4445,3400.3,3400.2,0.29464]
[1735422010452,0.73914,3400.3,3400.2,0.29464]
[1735422010654,0.4445,3400.3,3400.2,0.29464]
[1735422010854,0.73914,3400.3,3400.2,0.29464]
[1735422011153,5.36507068,3400.3,3400.2,0.29464]
[1735422011549,0.29465,3400.2,3400.1,0.29465]
[1735422011752,0.76025,3400.2,3400.1,0.29465]
[1735422015553,3.96805,3400.2,3400.1,0.29465]
[1735422015949,3.50245,3400.2,3400.1,0.29465]
[1735422020862,0.29465,3400.1,3400.0,0.73626]
[1735422022559,3.50245,3400.1,3400.0,0.4416]
[1735422023964,8.12838068,3400.1,3400.0,0.4416]
[1735422024461,8.12838068,3400.1,3400.0,0.73626]
[1735422027962,3.50245,3400.1,3400.0,0.73626]
[1735422030165,0.29465,3400.1,3400.0,0.73626]
[1735422030465,8.12838068,3400.1,3400.0,0.73626]
[1735422032068,3.50245,3400.1,3400.0,0.73626]
[1735422032258,3.50245,3400.1,3400.0,0.29466]
[1735422035163,6.96490568,3400.1,3400.0,0.29466]
[1735422038866,3.50245,3400.1,3400.0,0.29466]
[1735422040167,3.94445,3400.1,3399.7,0.29469]
[1735422040361,0.29468,3399.8,3399.7,0.29469]
[1735422040560,0.29467,3400.0,3399.9,0.29466]
[1735422041164,0.29467,3400.0,3399.6,0.72837573]
[1735422041358,0.29469,3399.8,3399.7,0.29468]
[1735422042159,0.71899,3399.8,3399.7,0.29468]
[1735422042565,0.4243,3399.8,3399.4,0.72837573]
[1735422042764,0.2947,3399.6,3399.5,0.2947]
[1735422044264,4.91659458,3399.6,3399.5,0.2947]
[1735422044462,4.62189458,3399.6,3399.3,0.4239]
[1735422044664,1.02309573,3399.4,3399.3,0.4239]
[1735422044870,0.29472,3399.4,3399.3,0.4239]
[1735422045170,0.29475,3399.1,3399.0,0.29474]
[1735422045371,0.29475,3399.1,3399.0,0.74014]
[1735422048264,3.76423134,3399.2,3399.0,0.4454]
[1735422048571,3.46949134,3399.2,3399.1,0.29474]
[1735422048766,3.46949134,3399.2,3399.0,0.4454]
[1735422048963,0.29474,3399.1,3399.0,0.4454]
[1735422049160,0.71944,3399.1,3399.0,0.4454]
[1735422049866,5.34542845,3399.1,3399.0,0.74015]
[1735422051073,6.50784172,3399.1,3399.0,0.74015]
[1735422052066,5.78840172,3399.1,3399.0,1.46852573]
[1735422052481,3.2078,3399.3,3399.0,1.46852573]
[1735422052482,5.78840172,3399.2,3399.1,0.29474]
[1735422052776,5.78840172,3399.2,3399.1,1.02311573]
[1735422053675,6.67866938,3399.3,3399.2,0.29473]
[1735422054672,3.2078,3399.3,3399.2,0.29473]
[1735422055971,3.47086938,3399.4,3399.1,0.72837573]
[1735422056168,3.47086938,3399.4,3399.3,0.29472]
[1735422058571,4.92253584,3399.5,3399.4,0.29472]
[1735422059875,0.29474,3399.2,3399.1,0.29473]
[1735422060173,0.29474,3399.1,3399.0,0.74014]
[1735422060377,0.71514,3399.1,3399.0,0.74014]
[1735422060672,3.92294,3399.1,3399.0,0.74014]
[1735422061077,0.29476,3398.9,3398.8,0.4638]
[1735422061280,0.29476,3398.9,3398.8,0.29476]
[1735422065075,3.50256,3398.9,3398.8,0.29476]
[1735422067677,0.29478,3398.8,3398.7,0.29477]
[1735422068680,3.76048,3398.8,3398.7,0.29477]
[1735422069072,6.96828,3398.8,3398.7,0.29477]
[1735422069980,0.29478,3398.7,3398.6,0.4453]
[1735422071181,0.72948,3398.7,3398.6,0.4453]
[1735422072781,0.72948,3398.7,3398.6,0.74009]
[1735422073076,0.29478,3398.7,3398.6,0.4453]
[1735422073473,1.02315573,3398.7,3398.6,0.4453]
[1735422073677,1.02315573,3398.7,3398.2,1.16397573]
[1735422073678,0.29483,3398.2,3398.1,0.29482]
[1735422074976,3.2078,3398.3,3397.9,0.8932]
[1735422075177,0.29484,3398.0,3397.9,0.8932]
[1735422075880,0.29484,3398.0,3397.9,1.18805]
[1735422076477,3.2078,3398.3,3398.2,0.29482]
[1735422077083,6.6735,3398.3,3398.2,0.29482]
[1735422078183,3.4657,3398.3,3398.2,3.50262]
[1735422078485,3.76051,3398.3,3398.2,0.29482]
[1735422078685,0.29481,3398.3,3398.2,0.29482]
[1735422079288,0.72837573,3398.3,3397.9,0.8932]
[1735422079485,0.29484,3398.1,3398.0,0.29483]
[1735422083584,6.6735,3398.2,3397.9,0.8932]
[1735422083790,3.50263,3398.2,3398.1,0.29483]
[1735422085492,3.2078,3398.2,3397.9,0.8932]
[1735422085691,0.29484,3398.1,3398.0,0.29483]
[1735422095492,0.29484,3398.0,3397.9,1.18804]
[1735422098298,3.2078,3398.1,3397.9,0.8932]
[1735422098495,3.50264,3398.1,3398.0,0.29484]
[1735422099198,3.2078,3398.1,3398.0,0.29484]
[1735422099501,3.50263,3398.1,3398.0,0.29484]
[1735422100602,3.2078,3398.1,3398.0,0.29484]
[1735422103701,6.6735,3398.1,3398.0,0.29484]
[1735422103901,3.4657,3398.1,3398.0,1.02395966]
[1735422104300,2.7662,3398.1,3398.0,1.02395966]
[1735422104910,5.35139584,3398.8,3398.0,0.72911966]
[1735422105207,5.35139584,3398.8,3398.7,0.29478]
[1735422111413,0.72357,3398.8,3398.7,0.29478]
[1735422114815,0.29478,3398.7,3398.6,0.29477]
[1735422116123,4.92228727,3398.7,3398.6,0.29477]
[1735422117724,0.29478,3398.7,3398.6,0.29477]
[1735422121127,4.92243652,3398.7,3398.6,0.29477]
[1735422125028,4.62765652,3398.7,3398.6,0.29477]
[1735422125228,4.62765652,3398.8,3398.5,0.8766]
[1735422125417,4.62765652,3398.8,3398.7,0.29477]
[1735422126923,0.29476,3398.9,3398.8,0.29476]
[1735422127123,7.83545652,3399.1,3398.5,1.61358]
[1735422127328,0.29475,3399.0,3398.9,0.29475]
[1735422127826,4.62765652,3399.1,3399.0,0.29475]
[1735422128328,2.76705652,3399.1,3399.0,6.75141088]